fUST/lending_fUST_20250808
["ID","MTS","AMOUNT","RATE_DAILY","PERIOD"]
[377872302,1754589067508,-462.7029668,0.00022465,2]
[377872303,1754589067518,-543.576469,0.00022465,7]
[377872304,1754589067529,-543.576469,0.00022465,7]
[377872305,1754589067538,-460.0,0.00022465,2]
[377872306,1754589067548,-465.87669124,0.00022465,2]
[377872307,1754589067559,-1003.1,0.00022465,2]
[377872308,1754589067569,-543.576469,0.00022465,7]
[377872309,1754589067579,-543.576469,0.00022465,7]
[377872310,1754589067589,-151.0,0.00022465,7]
[377872311,1754589067599,-151.0,0.00022465,7]
[377872312,1754589067610,-460.0,0.00022465,2]
[377872313,1754589067619,-460.0,0.00022465,2]
[377872314,1754589067629,-460.0,0.00022465,2]
[377872315,1754589067638,-483.73105929,0.00022465,2]
[377872316,1754589067648,-460.0,0.00022465,2]
[377872317,1754589067658,-842.23,0.00022465,2]
[377872318,1754589067668,-460.0,0.00022465,2]
[377872319,1754589067677,-460.0,0.00022465,2]
[377872320,1754589067686,-512.74,0.00022465,2]
[377872321,1754589067696,-460.0,0.00022465,2]
[377872322,1754589067705,-460.0,0.00022465,2]
[377872323,1754589067714,-460.0,0.00022465,2]
[377872324,1754589067724,-460.0,0.00022465,2]
[377872325,1754589067733,-460.0,0.00022465,2]
[377872326,1754589067743,-460.0,0.00022465,2]
[377872327,1754589067752,-460.0,0.00022465,2]
[377872328,1754589067761,-460.0,0.00022465,2]
[377872329,1754589067773,-460.0,0.00022465,2]
[377872330,1754589067782,-460.0,0.00022465,2]
[377872331,1754589067792,-463.49270176,0.00022465,2]
[377872332,1754589067801,-460.0,0.00022465,2]
[377872333,1754589067810,-460.0,0.00022465,2]
[377872334,1754589067820,-460.0,0.00022465,2]
[377872335,1754589067829,-460.0,0.00022465,2]
[377872336,1754589067838,-460.0,0.00022465,2]
[377872337,1754589067848,-460.0,0.00022465,2]
[377872338,1754589067857,-460.0,0.00022465,2]
[377872339,1754589067867,-460.0,0.00022465,2]
[377872340,1754589067876,-465.4516544,0.00022465,2]
[377872341,1754589067886,-460.0,0.00022465,2]
[377872342,1754589067895,-2023.68,0.00022465,2]
[377872343,1754589067905,-460.0,0.00022465,2]
[377872344,1754589067914,-460.0,0.00022465,2]
[377872345,1754589067924,-460.0,0.00022465,2]
[377872346,1754589067935,-460.0,0.00022465,2]
[377872347,1754589067944,-1722.81,0.00022465,2]
[377872348,1754589067954,-460.0,0.00022465,2]
[377872349,1754589067963,-460.0,0.00022465,2]
[377872350,1754589067973,-460.0,0.00022465,2]
[377872351,1754589067983,-460.0,0.00022465,2]
[377872352,1754589067994,-460.0,0.00022465,2]
[377872353,1754589068003,-460.0,0.00022465,2]
[377872354,1754589068012,-1805.48,0.00022465,2]
[377872355,1754589068021,-460.0,0.00022465,2]
[377872356,1754589068032,-479.16,0.00022465,2]
[377872357,1754589068041,-475.28,0.00022465,2]
[377872358,1754589068051,-460.0,0.00022465,2]
[377872359,1754589068061,-460.0,0.00022465,2]
[377872360,1754589068071,-511.83,0.00022465,2]
[377872361,1754589068080,-465.67068235,0.00022465,2]
[377872362,1754589068090,-460.0,0.00022465,2]
[377872363,1754589068099,-460.0,0.00022465,2]
[377872364,1754589068109,-460.0,0.00022465,2]
[377872365,1754589068119,-1677.96,0.00022465,2]
[377872366,1754589068129,-460.0,0.00022465,2]
[377872367,1754589068138,-496.73,0.00022465,2]
[377872368,1754589068149,-460.0,0.00022465,2]
[377872369,1754589068159,-460.0,0.00022465,2]
[377872370,1754589068169,-545.83900206,0.00022465,2]
[377872371,1754589068178,-460.0,0.00022465,2]
[377872372,1754589068188,-2679.67,0.00022465,2]
[377872373,1754589068197,-460.0,0.00022465,2]
[377872374,1754589068207,-479.16,0.00022465,2]
[377872375,1754589068216,-460.0,0.00022465,2]
[377872376,1754589068225,-460.0,0.00022465,2]
[377872377,1754589068234,-461.61440369,0.00022465,2]
[377872378,1754589068243,-460.0,0.00022465,2]
[377872379,1754589068252,-1601.12,0.00022465,2]
[377872380,1754589068262,-2200.78,0.00022465,2]
[377872381,1754589068271,-460.0,0.00022465,2]
[377872382,1754589068281,-460.0,0.00022465,2]
[377872383,1754589068290,-893.12,0.00022465,2]
[377872384,1754589068299,-1202.59,0.00022465,2]
[377872385,1754589068309,-460.0,0.00022465,2]
[377872386,1754589068318,-460.0,0.00022465,2]
[377872387,1754589068327,-460.0,0.00022465,2]
[377872388,1754589068336,-151.0,0.00022465,7]
[377872389,1754589068345,-151.0,0.00022465,7]
[377872390,1754589068355,-602.415182,0.00022465,7]
[377872391,1754589068365,-602.415182,0.00022465,7]
[377872392,1754589068375,-460.0,0.00022465,2]
[377872393,1754589068385,-460.0,0.00022465,2]
[377872394,1754589068394,-460.0,0.00022465,2]
[377872395,1754589068404,-1228.68,0.00022465,2]
[377872396,1754589068415,-460.0,0.00022465,2]
[377872397,1754589068425,-460.0,0.00022465,2]
[377872398,1754589068434,-460.0,0.00022465,2]
[377872399,1754589068443,-460.0,0.00022465,2]
[377872400,1754589068453,-602.415182,0.00022465,7]
[377872401,1754589068462,-460.0,0.00022465,2]
[377872402,1754589068472,-460.0,0.00022465,2]
[377872403,1754589068481,-460.0,0.00022465,2]
[377872404,1754589068491,-460.0,0.00022465,2]
[377872405,1754589068500,-602.415182,0.00022465,7]
[377872406,1754589068509,-460.0,0.00022465,2]
[377872407,1754589068519,-460.0,0.00022465,2]
[377872408,1754589068527,-460.0,0.00022465,2]
[377872409,1754589068537,-460.0,0.00022465,2]
[377872410,1754589068546,-460.0,0.00022465,2]
[377872411,1754589068556,-460.0,0.00022465,2]
[377872412,1754589068565,-460.0,0.00022465,2]
[377872413,1754589068575,-2063.1,0.00022465,2]
[377872414,1754589068585,-460.0,0.00022465,2]
[377872415,1754589068594,-460.0,0.00022465,2]
[377872416,1754589068603,-460.0,0.00022465,2]
[377872417,1754589068612,-1000.0,0.00022465,2]
[377872418,1754589068621,-262.73821295,0.00022465,2]
[377872419,1754589068631,-4568.18,0.00022465,2]
[377872420,1754589068641,-549.64,0.00022465,2]
[377872421,1754589068650,-460.0,0.00022465,2]
[377872422,1754589068660,-282.11881828,0.00022465,2]
[377872423,1754589068669,-460.0,0.00022465,2]
[377872424,1754589068679,-1013.49,0.00022465,2]
[377872425,1754589068688,-460.0,0.00022465,2]
[377872426,1754589068697,-460.0,0.00022465,2]
[377872427,1754589068707,-460.0,0.00022465,2]
[377872428,1754589068716,-541.96,0.00022465,2]
[377872429,1754589068725,-460.0,0.00022465,2]
[377872430,1754589068735,-460.0,0.00022465,2]
[377872431,1754589068745,-460.0,0.00022465,2]
[377872432,1754589068755,-460.0,0.00022465,2]
[377872433,1754589068765,-460.0,0.00022465,2]
[377872434,1754589068774,-460.0,0.00022465,2]
[377872435,1754589068784,-460.0,0.00022465,2]
[377872436,1754589068793,-460.0,0.00022465,2]
[377872437,1754589068802,-460.0,0.00022465,2]
[377872438,1754589068811,-1175.66,0.00022465,2]
[377872439,1754589068820,-460.0,0.00022465,2]
[377872440,1754589068829,-460.0,0.00022465,2]
[377872441,1754589068838,-460.0,0.00022465,2]
[377872442,1754589068848,-2183.26,0.00022465,2]
[377872443,1754589068857,-588.41,0.00022465,2]
[377872444,1754589068866,-460.0,0.00022465,2]
[377872445,1754589068876,-9393.66,0.00022465,2]
[377872446,1754589068885,-460.0,0.00022465,2]
[377872447,1754589068894,-6185.67,0.00022465,2]
[377872448,1754589068904,-460.0,0.00022465,2]
[377872449,1754589068913,-460.0,0.00022465,2]
[377872450,1754589068922,-500.0,0.00022465,2]
[377872451,1754589068931,-460.0,0.00022465,2]
[377872452,1754589068940,-671.87,0.00022465,2]
[377872453,1754589068950,-460.0,0.00022465,2]
[377872454,1754589068960,-460.0,0.00022465,2]
[377872455,1754589068969,-460.0,0.00022465,2]
[377872456,1754589068978,-460.0,0.00022465,2]
[377872457,1754589068990,-460.0,0.00022465,2]
[377872458,1754589068999,-460.0,0.00022465,2]
[377872459,1754589069008,-617.56,0.00022465,2]
[377872460,1754589069018,-460.0,0.00022465,2]
[377872461,1754589069029,-3715.56,0.00022465,2]
[377872462,1754589069038,-460.0,0.00022465,2]
[377872463,1754589069047,-460.0,0.00022465,2]
[377872464,1754589069056,-460.0,0.00022465,2]
[377872465,1754589069066,-460.0,0.00022465,2]
[377872466,1754589069076,-460.0,0.00022465,2]
[377872467,1754589069086,-2605.25,0.00022465,2]
[377872468,1754589069096,-460.0,0.00022465,2]
[377872469,1754589069105,-460.0,0.00022465,2]
[377872470,1754589069115,-3296.2,0.00022465,2]
[377872471,1754589069124,-460.0,0.00022465,2]
[377872472,1754589069134,-460.0,0.00022465,2]
[377872473,1754589069144,-460.0,0.00022465,2]
[377872474,1754589069154,-460.0,0.00022465,2]
[377872475,1754589069163,-991.4,0.00022465,2]
[377872476,1754589069173,-460.0,0.00022465,2]
[377872477,1754589069183,-460.0,0.00022465,2]
[377872478,1754589069192,-460.0,0.00022465,2]
[377872479,1754589069201,-460.0,0.00022465,2]
[377872480,1754589069211,-460.0,0.00022465,2]
[377872481,1754589069220,-460.7002595,0.00022465,2]
[377872482,1754589069230,-151.0,0.00022465,7]
[377872483,1754589069239,-151.0,0.00022465,7]
[377872484,1754589069248,-460.0,0.00022465,2]
[377872485,1754589069257,-460.0,0.00022465,2]
[377872486,1754589069267,-460.0,0.00022465,2]
[377872487,1754589069277,-498.33,0.00022465,2]
[377872488,1754589069287,-151.0,0.00022465,7]
[377872489,1754589069297,-154.220599,0.00022465,7]
[377872490,1754589069306,-464.57994861,0.00022465,2]
[377872491,1754589069316,-461.67699313,0.00022465,2]
[377872492,1754589069325,-460.0,0.00022465,2]
[377872493,1754589069335,-411.47939689,0.00022465,2]
[377872494,1754589069344,-460.0,0.00022465,2]
[377872495,1754589069354,-1105.26,0.00022465,2]
[377872496,1754589069364,-836.29,0.00022465,2]
[377872497,1754589069375,-464.07732888,0.00022465,2]
[377872498,1754589069389,-460.0,0.00022465,2]
[377872499,1754589069398,-460.0,0.00022465,2]
[377872500,1754589069407,-1771.43,0.00022465,2]
[377872501,1754589069417,-4226.84,0.00022465,2]
[377872502,1754589069426,-460.0,0.00022465,2]
[377872503,1754589069435,-460.0,0.00022465,2]
[377872504,1754589069450,-460.0,0.00022465,2]
[377872505,1754589069464,-460.0,0.00022465,2]
[377872506,1754589069473,-460.0,0.00022465,2]
[377872507,1754589069483,-460.0,0.00022465,2]
[377872508,1754589069492,-460.0,0.00022465,2]
[377872509,1754589069501,-460.0,0.00022465,2]
[377872510,1754589069511,-460.0,0.00022465,2]
[377872511,1754589069520,-460.0,0.00022465,2]
[377872512,1754589069529,-460.0,0.00022465,2]
[377872513,1754589069539,-460.0,0.00022465,2]
[377872514,1754589069548,-231.836744,0.00022465,7]
[377872515,1754589069557,-231.836744,0.00022465,7]
[377872516,1754589069568,-460.0,0.00022465,2]
[377872517,1754589069577,-460.0,0.00022465,2]
[377872518,1754589069587,-460.0,0.00022465,2]
[377872519,1754589069597,-155.416666,0.00022465,7]
[377872520,1754589069606,-155.416666,0.00022465,7]
[377872521,1754589069616,-715.56,0.00022465,2]
[377872522,1754589069626,-231.836744,0.00022465,7]
[377872523,1754589069635,-231.836744,0.00022465,7]
[377872524,1754589069645,-760.87,0.00022465,2]
[377872525,1754589069654,-1269.12,0.00022465,2]
[377872526,1754589069664,-460.0,0.00022465,2]
[377872527,1754589069674,-460.0,0.00022465,2]
[377872528,1754589069683,-460.0,0.00022465,2]
[377872529,1754589069693,-460.0,0.00022465,2]
[377872530,1754589069703,-3053.08,0.00022465,2]
[377872531,1754589069714,-460.0,0.00022465,2]
[377872532,1754589069724,-460.0,0.00022465,2]
[377872533,1754589069734,-155.416666,0.00022465,7]
[377872534,1754589069743,-155.416666,0.00022465,7]
[377872535,1754589069753,-460.0,0.00022465,2]
[377872536,1754589069763,-460.0,0.00022465,2]
[377872537,1754589069772,-181.25965717,0.00022465,2]
[377872538,1754589069782,-460.0,0.00022465,2]
[377872539,1754589069791,-460.0,0.00022465,2]
[377872540,1754589069800,-1562.82,0.00022465,2]
[377872541,1754589069810,-1549.47,0.00022465,2]
[377872542,1754589069819,-4654.08,0.00022465,2]
[377872543,1754589069830,-460.0,0.00022465,2]
[377872544,1754589069839,-460.0,0.00022465,2]
[377872545,1754589069849,-460.0,0.00022465,2]
[377872546,1754589069859,-460.0,0.00022465,2]
[377872547,1754589069867,-460.0,0.00022465,2]
[377872548,1754589069877,-460.0,0.00022465,2]
[377872549,1754589069886,-460.0,0.00022465,2]
[377872550,1754589069895,-1324.11,0.00022465,2]
[377872551,1754589069905,-1184.37,0.00022465,2]
[377872552,1754589069915,-150.0,0.00022473,2]
[377872553,1754589069924,-150.0,0.00022473,2]
[377872554,1754589070065,-500.0,0.00022473,2]
[377872555,1754589070076,-503.00438224,0.00022473,2]
[377872556,1754589070085,-500.0,0.00022473,2]
[377872557,1754589070095,-158.72510713,0.00022473,2]
[377872558,1754589070104,-704.4640662,0.00022521,2]
[377872559,1754589070113,-805.35423632,0.00022521,2]
[377872560,1754589070122,-500.47467206,0.00022521,2]
[377872561,1754589070131,-501.8481673,0.00022521,2]
[377872562,1754589070140,-500.0,0.00022521,2]
[377872563,1754589070152,-1000.0,0.00022521,2]
[377872564,1754589070162,-676.02074832,0.00022521,2]
[377872565,1754589070175,-1000.0,0.00022521,2]
[377872566,1754589070184,-471.4760646,0.00022521,2]
[377872567,1754589070195,-1000.0,0.00022521,2]
[377872568,1754589070206,-503.50883992,0.00022521,2]
[377872569,1754589070216,-203.03257847,0.00022521,2]
[377872570,1754589070228,-1000.0,0.00022521,2]
[377872571,1754589070237,-1000.0,0.00022521,2]
[377872572,1754589070247,-1000.0,0.00022521,2]
[377872573,1754589070256,-1000.0,0.00022521,2]
[377872574,1754589070266,-1014.26297066,0.00022521,2]
[377872575,1754589070275,-1000.0,0.00022521,2]
[377872576,1754589070285,-932.27979854,0.00022521,2]
[377872577,1754589070294,-1000.0,0.00022521,2]
[377872578,1754589070310,-632.57237053,0.00022521,2]
[377872579,1754589070320,-1000.0,0.00022521,2]
[377872580,1754589070329,-418.18064,0.00022521,7]
[377872581,1754589070339,-418.18064,0.00022521,7]
[377872582,1754589070348,-633.376608,0.00022521,7]
[377872583,1754589070357,-633.376608,0.00022521,7]
[377872584,1754589070366,-151.0,0.00022521,7]
[377872585,1754589070376,-602.415182,0.00022521,7]
[377872586,1754589070386,-602.415182,0.00022521,7]
[377872587,1754589070396,-200.0,0.00022554,15]
[377872588,1754589070405,-300.0,0.00022554,15]
[377872589,1754589070415,-160.0,0.00022607,2]
[377872590,1754589070424,-527.57568145,0.00022607,2]
[377872591,1754589070435,-160.0,0.00022607,2]
[377872592,1754589070447,-160.0,0.00022607,2]
[377872593,1754589070457,-160.0,0.00022607,2]
[377872594,1754589070466,-312.16666667,0.00022607,2]
[377872595,1754589070476,-231.83071243,0.00022607,2]
[377872596,1754589070485,-215.31718835,0.00022607,2]
[377872597,1754589070494,-842.63596909,0.00022607,2]
[377872598,1754589070504,-461.3695942,0.00022607,2]
[377872599,1754589070513,-12660.90439413,0.00022607,2]
[377872600,1754589070523,-160.0,0.00022607,2]
[377872601,1754589070532,-216.52217562,0.00022607,2]
[377872602,1754589070542,-160.0,0.00022607,2]
[377872603,1754589070551,-160.0,0.00022607,2]
[377872604,1754589070560,-231.836744,0.00022621,7]
[377872605,1754589070569,-231.836744,0.00022621,7]
[377872606,1754589070579,-151.0,0.00022625,7]
[377872607,1754589070588,-151.0,0.00022625,7]
[377872608,1754589070597,-151.0,0.00022625,7]
[377872609,1754589070606,-151.0,0.00022625,7]
[377872610,1754589070616,-151.0,0.00022625,7]
[377872611,1754589070626,-151.0,0.00022625,7]
[377872612,1754589070635,-151.0,0.00022625,7]
[377872613,1754589070645,-319.494968,0.00022625,7]
[377872614,1754589070655,-319.494968,0.00022625,7]
[377872615,1754589070665,-1226.812263,0.00022625,7]
[377872616,1754589070674,-1226.812263,0.00022625,7]
[377872617,1754589070683,-239.192816,0.00022625,7]
[377872618,1754589070692,-239.192816,0.00022625,7]
[377872619,1754589070703,-461.3695942,0.00022625,7]
[377872620,1754589070713,-151.0,0.00022627,7]
[377872621,1754589070722,-151.0,0.00022627,7]
[377872622,1754589070731,-151.0,0.00022627,7]
[377872623,1754589070740,-151.0,0.00022627,7]
[377872624,1754589070752,-151.0,0.00022627,7]
[377872625,1754589070761,-151.0,0.00022627,7]
[377872626,1754589070771,-151.0,0.00022627,7]
[377872627,1754589070781,-151.0,0.00022627,7]
[377872628,1754589070792,-151.0,0.00022627,7]
[377872629,1754589070801,-151.0,0.00022627,7]
[377872630,1754589070810,-269.406875,0.00022627,7]
[377872631,1754589070820,-269.406875,0.00022627,7]
[377872632,1754589070829,-151.0,0.00022627,7]
[377872633,1754589070838,-151.0,0.00022627,7]
[377872634,1754589070848,-151.0,0.00022627,7]
[377872635,1754589070859,-151.0,0.00022627,7]
[377872636,1754589070870,-151.0,0.00022627,7]
[377872637,1754589070880,-151.0,0.00022627,7]
[377872638,1754589070890,-151.0,0.00022627,7]
[377872639,1754589070899,-173.854557,0.00022627,7]
[377872640,1754589070909,-173.854557,0.00022627,7]
[377872641,1754589070919,-151.0,0.00022627,7]
[377872642,1754589070928,-151.0,0.00022627,7]
[377872643,1754589070937,-151.0,0.00022627,7]
[377872644,1754589070946,-151.0,0.00022627,7]
[377872645,1754589070955,-1157.307166,0.00022627,7]
[377872646,1754589070964,-1157.307166,0.00022627,7]
[377872647,1754589070974,-151.0,0.00022627,7]
[377872648,1754589070984,-151.0,0.00022627,7]
[377872649,1754589070994,-215.31718835,0.00022627,7]
[377872650,1754589071005,-2965.8041581,0.00022639,2]
[377872651,1754589071015,-151.0,0.00022703,7]
[377872652,1754589071025,-357.573373,0.00022703,7]
[377872653,1754589071035,-357.573373,0.00022703,7]
[377872654,1754589071044,-500.0,0.00022712,2]
[377872655,1754589071053,-1000.0,0.00022721,2]
[377872656,1754589071067,-604.94525704,0.00022721,2]
[377872657,1754589071079,-1000.0,0.00022721,2]
[377872658,1754589071090,-218.05065774,0.00022721,2]
[377872659,1754589071100,-250.0,0.00022721,2]
[377872660,1754589071110,-1000.0,0.00022721,2]
[377872661,1754589071120,-1108.99655383,0.00022721,2]
[377872662,1754589071129,-1003.58142104,0.00022721,2]
[377872663,1754589071139,-867.63426456,0.00022721,2]
[377872664,1754589071149,-501.23819731,0.00022721,2]
[377872665,1754589071160,-1000.0,0.00022721,2]
[377872666,1754589071170,-1000.0,0.00022721,2]
[377872667,1754589071180,-502.86487487,0.00022721,2]
[377872668,1754589071190,-500.4151272,0.00022721,2]
[377872669,1754589071201,-1009.11335543,0.00022721,2]
[377872670,1754589071211,-1000.0,0.00022721,2]
[377872671,1754589071221,-500.88405749,0.00022721,2]
[377872672,1754589071231,-1000.0,0.00022721,2]
[377872673,1754589071240,-1000.0,0.00022721,2]
[377872674,1754589071249,-1000.0,0.00022721,2]
[377872675,1754589071259,-1000.0,0.00022721,2]
[377872676,1754589071269,-500.0,0.00022721,2]
[377872677,1754589071279,-1000.0,0.00022721,2]
[377872678,1754589071289,-1000.0,0.00022721,2]
[377872679,1754589071299,-1000.0,0.00022721,2]
[377872680,1754589071309,-241.60563885,0.00022721,2]
[377872681,1754589071320,-1000.0,0.00022721,2]
[377872682,1754589071332,-1000.0,0.00022721,2]
[377872683,1754589071342,-1000.0,0.00022721,2]
[377872684,1754589071352,-503.79266212,0.00022721,2]
[377872685,1754589071361,-818.63580423,0.00022721,2]
[377872686,1754589071371,-1002.50247681,0.00022721,2]
[377872687,1754589071381,-1003.33346352,0.00022721,2]
[377872688,1754589071391,-1000.0,0.00022721,2]
[377872689,1754589071401,-1000.0,0.00022721,2]
[377872690,1754589071413,-504.05394247,0.00022721,2]
[377872691,1754589071423,-1000.0,0.00022721,2]
[377872692,1754589071433,-500.0,0.00022721,2]
[377872693,1754589071442,-1000.0,0.00022721,2]
[377872694,1754589071453,-1000.0,0.00022721,2]
[377872695,1754589071463,-500.0,0.00022721,2]
[377872696,1754589071472,-1000.0,0.00022721,2]
[377872697,1754589071482,-1000.0,0.00022721,2]
[377872698,1754589071492,-501.61245497,0.00022721,2]
[377872699,1754589071502,-500.0,0.00022721,2]
[377872700,1754589071512,-1000.0,0.00022721,2]
[377872701,1754589071522,-1000.0,0.00022721,2]
[377872702,1754589071531,-1000.0,0.00022721,2]
[377872703,1754589071541,-500.0,0.00022721,2]
[377872704,1754589071551,-1000.0,0.00022721,2]
[377872705,1754589071561,-151.0,0.00022721,7]
[377872706,1754589071570,-496.145155,0.00022721,7]
[377872707,1754589071582,-496.145155,0.00022721,7]
[377872708,1754589071591,-1500.0,0.00022721,14]
[377872709,1754589071602,-1500.0,0.00022721,14]
[377872710,1754589071611,-1500.0,0.00022721,14]
[377872711,1754589071621,-1500.0,0.00022721,14]
[377872712,1754589071631,-1500.0,0.00022721,14]
[377872713,1754589071642,-1500.0,0.00022721,14]
[377872714,1754589071651,-1064.481526,0.00022721,14]
[377872715,1754589071660,-151.0,0.00022721,7]
[377872716,1754589071670,-543.576469,0.00022721,7]
[377872717,1754589071680,-543.576469,0.00022721,7]
[377872718,1754589071690,-151.0,0.00022721,7]
[377872719,1754589071699,-151.0,0.00022721,7]
[377872720,1754589071709,-257.194848,0.00022721,7]
[377872721,1754589071719,-155.416666,0.00022721,7]
[377872722,1754589071729,-155.416666,0.00022721,7]
[377872723,1754589071738,-200.0,0.00022738,2]
[377872724,1754589071748,-151.0,0.00022739,7]
[377872725,1754589071758,-172.289034,0.00022739,7]
[377872726,1754589071767,-151.731813,0.00022739,7]
[377872727,1754589071776,-274.148241,0.00022739,7]
[377872728,1754589071786,-151.0,0.00022739,7]
[377872729,1754589071797,-432.790972,0.00022739,7]
[377872730,1754589071807,-432.790972,0.00022739,7]
[377872731,1754589071818,-382.399396,0.00022739,7]
[377872732,1754589071827,-382.399396,0.00022739,7]
[377872733,1754589071836,-151.0,0.00022739,7]
[377872734,1754589071846,-151.0,0.00022739,7]
[377872735,1754589071855,-460.0,0.00022739,2]
[377872736,1754589071864,-460.0,0.00022739,2]
[377872737,1754589071874,-460.0,0.00022739,2]
[377872738,1754589071884,-460.0,0.00022739,2]
[377872739,1754589071893,-569.86,0.00022739,2]
[377872740,1754589071903,-460.0,0.00022739,2]
[377872741,1754589071913,-151.0,0.00022739,7]
[377872742,1754589071923,-460.0,0.00022739,2]
[377872743,1754589071933,-460.0,0.00022739,2]
[377872744,1754589071942,-460.0,0.00022739,2]
[377872745,1754589071953,-460.0,0.00022739,2]
[377872746,1754589071963,-470.96372792,0.00022739,2]
[377872747,1754589071973,-460.0,0.00022739,2]
[377872748,1754589071982,-460.0,0.00022739,2]
[377872749,1754589071995,-461.4887685,0.00022739,2]
[377872750,1754589072004,-460.62381113,0.00022739,2]
[377872751,1754589072015,-343.51478512,0.00022739,2]
[377872752,1754589072024,-460.0,0.00022739,2]
[377872753,1754589072033,-351.36848967,0.00022739,2]
[377872754,1754589072043,-460.0,0.00022739,2]
[377872755,1754589072052,-470.62568906,0.00022739,2]
[377872756,1754589072062,-460.0,0.00022739,2]
[377872757,1754589072072,-460.0,0.00022739,2]
[377872758,1754589072082,-460.0,0.00022739,2]
[377872759,1754589072092,-461.46562198,0.00022739,2]
[377872760,1754589072102,-151.0,0.00022739,7]
[377872761,1754589072112,-151.0,0.00022739,7]
[377872762,1754589072123,-460.0,0.00022739,2]
[377872763,1754589072132,-460.0,0.00022739,2]
[377872764,1754589072142,-460.0,0.00022739,2]
[377872765,1754589072154,-151.0,0.00022739,7]
[377872766,1754589072164,-460.0,0.00022739,2]
[377872767,1754589072173,-460.0,0.00022739,2]
[377872768,1754589072184,-460.0,0.00022739,2]
[377872769,1754589072194,-480.0,0.00022739,2]
[377872770,1754589072204,-247.927842,0.00022739,7]
[377872771,1754589072215,-460.0,0.00022739,2]
[377872772,1754589072225,-460.0,0.00022739,2]
[377872773,1754589072234,-460.0,0.00022739,2]
[377872774,1754589072243,-460.0,0.00022739,2]
[377872775,1754589072253,-242.14828515,0.00022739,2]
[377872776,1754589072262,-488.37319241,0.00022739,2]
[377872777,1754589072271,-462.57887394,0.00022739,2]
[377872778,1754589072280,-460.0,0.00022739,2]
[377872779,1754589072289,-460.0,0.00022739,2]
[377872780,1754589072299,-460.0,0.00022739,2]
[377872781,1754589072308,-460.0,0.00022739,2]
[377872782,1754589072318,-229.22483265,0.00022739,2]
[377872783,1754589072327,-460.0,0.00022739,2]
[377872784,1754589072336,-460.0,0.00022739,2]
[377872785,1754589072346,-319.494968,0.00022739,7]
[377872786,1754589072355,-265.75958267,0.00022739,2]
[377872787,1754589072364,-460.0,0.00022739,2]
[377872788,1754589072375,-468.07327526,0.00022739,2]
[377872789,1754589072384,-319.494968,0.00022739,7]
[377872790,1754589072394,-460.0,0.00022739,2]
[377872791,1754589072403,-460.0,0.00022739,2]
[377872792,1754589072412,-460.0,0.00022739,2]
[377872793,1754589072421,-496.145155,0.00022739,7]
[377872794,1754589072430,-460.0,0.00022739,2]
[377872795,1754589072440,-460.0,0.00022739,2]
[377872796,1754589072449,-509.55098293,0.00022739,2]
[377872797,1754589072458,-496.145155,0.00022739,7]
[377872798,1754589072467,-460.0,0.00022739,2]
[377872799,1754589072476,-460.0,0.00022739,2]
[377872800,1754589072485,-460.0,0.00022739,2]
[377872801,1754589072494,-460.0,0.00022739,2]